Workbook

Sheet Tilgung
A1: Tilgungstabelle
A3: Anfangskapital..... | C3: =J3 -> 45000 | J3: 45000
A4: Zinssatz................... | C4: =J4/100 -> 5.09 | D4: Bemerkung | J4: 509
A5: mtl. Zahlung............. | C5: =J5 -> 470 | D5: =IF(C3*C4/1200>=C5-1,"mtl. Zahlung zu gering!","") ->  | J5: 470
A6: Beginn..…………….. | C6: =J6 -> 01.01.2012 | D6: =IF(J7<TODAY(),"Datum liegt in der Vergangenheit!","") ->  | J6: 01.01.2012
J7: =DATE(YEAR(J6),MONTH(J6),DAY(J6)) -> 2012-01-01
A11: Monat Jahr | B11: Kapital | C11: Prozentsatz | D11: Tilgung | E11: Zinsen | F11: Zahlung | G11: Zinsen gesamt
G12: abc
A13: =DATE(YEAR(J6),MONTH(J6),DAY(J6)) -> 2012-01-01 | B13: =C3 -> 45000 | C13: =C4 -> 5.09 | D13: =F13-E13 -> 279.125 | E13: =B13*C13/100/12 -> 190.875 | F13: =$C$5 -> 470 | G13: =E13 -> 190.875
A14: =DATE(YEAR(A13),MONTH(A13)+1,DAY(A13)) -> 2012-02-01 | B14: =B13-D13 -> 44720.875 | C14: =C13 -> 5.09 | D14: =F14-E14 -> 280.3089552 | E14: =B14*C14/100/12 -> 189.6910448 | F14: =F13 -> 470 | G14: =IF(E14>=0,SUM($E$13:E14),"Ende") -> 380.5660448
A15: =DATE(YEAR(A14),MONTH(A14)+1,DAY(A14)) -> 2012-03-01 | B15: =B14-D14 -> 44440.56604 | C15: =C14 -> 5.09 | D15: =F15-E15 -> 281.4979324 | E15: =B15*C15/100/12 -> 188.5020676 | F15: =F14 -> 470 | G15: =IF(E15>=0,SUM($E$13:E15),"Ende") -> 569.0681124
A16: 2012-04-01 | B16: 44159.06811 | C16: 5.09 | D16: 282.6919528 | E16: 187.3080472 | F16: 470 | G16: =IF(E16>=0,SUM($E$13:E16),"Ende") -> 756.3761597
A17: 2012-05-01 | B17: 43876.37616 | C17: 5.09 | D17: 283.8910378 | E17: 186.1089622 | F17: 470 | G17: =IF(E17>=0,SUM($E$13:E17),"Ende") -> 942.4851219
A18: 2012-06-01 | B18: 43592.48512 | C18: 5.09 | D18: 285.0952089 | E18: 184.9047911 | F18: 470 | G18: =IF(E18>=0,SUM($E$13:E18),"Ende") -> 1127.389913
A19: 2012-07-01 | B19: 43307.38991 | C19: 5.09 | D19: 286.3044878 | E19: 183.6955122 | F19: 470 | G19: =IF(E19>=0,SUM($E$13:E19),"Ende") -> 1311.085425
A20: 2012-08-01 | B20: 43021.08543 | C20: 5.09 | D20: 287.518896 | E20: 182.481104 | F20: 470 | G20: =IF(E20>=0,SUM($E$13:E20),"Ende") -> 1493.566529
A21: 2012-09-01 | B21: 42733.56653 | C21: 5.09 | D21: 288.7384553 | E21: 181.2615447 | F21: 470 | G21: =IF(E21>=0,SUM($E$13:E21),"Ende") -> 1674.828074
A22: 2012-10-01 | B22: 42444.82807 | C22: 5.09 | D22: 289.9631876 | E22: 180.0368124 | F22: 470 | G22: =IF(E22>=0,SUM($E$13:E22),"Ende") -> 1854.864886
A23: 2012-11-01 | B23: 42154.86489 | C23: 5.09 | D23: 291.1931148 | E23: 178.8068852 | F23: 470 | G23: =IF(E23>=0,SUM($E$13:E23),"Ende") -> 2033.671772
A24: 2012-12-01 | B24: 41863.67177 | C24: 5.09 | D24: 292.4282589 | E24: 177.5717411 | F24: 470 | G24: =IF(E24>=0,SUM($E$13:E24),"Ende") -> 2211.243513
A25: 2013-01-01 | B25: 41571.24351 | C25: 5.09 | D25: 293.6686421 | E25: 176.3313579 | F25: 470 | G25: =IF(E25>=0,SUM($E$13:E25),"Ende") -> 2387.574871
A26: 2013-02-01 | B26: 41277.57487 | C26: 5.09 | D26: 294.9142866 | E26: 175.0857134 | F26: 470 | G26: =IF(E26>=0,SUM($E$13:E26),"Ende") -> 2562.660584
A27: 2013-03-01 | B27: 40982.66058 | C27: 5.09 | D27: 296.1652147 | E27: 173.8347853 | F27: 470 | G27: =IF(E27>=0,SUM($E$13:E27),"Ende") -> 2736.495369
A28: 2013-04-01 | B28: 40686.49537 | C28: 5.09 | D28: 297.4214488 | E28: 172.5785512 | F28: 470 | G28: =IF(E28>=0,SUM($E$13:E28),"Ende") -> 2909.07392
A29: 2013-05-01 | B29: 40389.07392 | C29: 5.09 | D29: 298.6830115 | E29: 171.3169885 | F29: 470 | G29: =IF(E29>=0,SUM($E$13:E29),"Ende") -> 3080.390909
A30: 2013-06-01 | B30: 40090.39091 | C30: 5.09 | D30: 299.9499252 | E30: 170.0500748 | F30: 470 | G30: =IF(E30>=0,SUM($E$13:E30),"Ende") -> 3250.440984
A31: 2013-07-01 | B31: 39790.44098 | C31: 5.09 | D31: 301.2222128 | E31: 168.7777872 | F31: 470 | G31: =IF(E31>=0,SUM($E$13:E31),"Ende") -> 3419.218771
A32: 2013-08-01 | B32: 39489.21877 | C32: 5.09 | D32: 302.499897 | E32: 167.500103 | F32: 470 | G32: =IF(E32>=0,SUM($E$13:E32),"Ende") -> 3586.718874
A33: 2013-09-01 | B33: 39186.71887 | C33: 5.09 | D33: 303.7830008 | E33: 166.2169992 | F33: 470 | G33: =IF(E33>=0,SUM($E$13:E33),"Ende") -> 3752.935873
A34: 2013-10-01 | B34: 38882.93587 | C34: 5.09 | D34: 305.071547 | E34: 164.928453 | F34: 470 | G34: =IF(E34>=0,SUM($E$13:E34),"Ende") -> 3917.864326
A35: 2013-11-01 | B35: 38577.86433 | C35: 5.09 | D35: 306.3655588 | E35: 163.6344412 | F35: 470 | G35: =IF(E35>=0,SUM($E$13:E35),"Ende") -> 4081.498767
A36: 2013-12-01 | B36: 38271.49877 | C36: 5.09 | D36: 307.6650594 | E36: 162.3349406 | F36: 470 | G36: =IF(E36>=0,SUM($E$13:E36),"Ende") -> 4243.833708
A37: 2014-01-01 | B37: 37963.83371 | C37: 5.09 | D37: 308.970072 | E37: 161.029928 | F37: 470 | G37: =IF(E37>=0,SUM($E$13:E37),"Ende") -> 4404.863636
A38: 2014-02-01 | B38: 37654.86364 | C38: 5.09 | D38: 310.2806201 | E38: 159.7193799 | F38: 470 | G38: =IF(E38>=0,SUM($E$13:E38),"Ende") -> 4564.583016
A39: 2014-03-01 | B39: 37344.58302 | C39: 5.09 | D39: 311.596727 | E39: 158.403273 | F39: 470 | G39: =IF(E39>=0,SUM($E$13:E39),"Ende") -> 4722.986289
A40: 2014-04-01 | B40: 37032.98629 | C40: 5.09 | D40: 312.9184165 | E40: 157.0815835 | F40: 470 | G40: =IF(E40>=0,SUM($E$13:E40),"Ende") -> 4880.067872
A41: 2014-05-01 | B41: 36720.06787 | C41: 5.09 | D41: 314.2457121 | E41: 155.7542879 | F41: 470 | G41: =IF(E41>=0,SUM($E$13:E41),"Ende") -> 5035.82216
A42: 2014-06-01 | B42: 36405.82216 | C42: 5.09 | D42: 315.5786377 | E42: 154.4213623 | F42: 470 | G42: =IF(E42>=0,SUM($E$13:E42),"Ende") -> 5190.243522
A43: 2014-07-01 | B43: 36090.24352 | C43: 5.09 | D43: 316.9172171 | E43: 153.0827829 | F43: 470 | G43: =IF(E43>=0,SUM($E$13:E43),"Ende") -> 5343.326305
A44: 2014-08-01 | B44: 35773.32631 | C44: 5.09 | D44: 318.2614743 | E44: 151.7385257 | F44: 470 | G44: =IF(E44>=0,SUM($E$13:E44),"Ende") -> 5495.064831
A45: 2014-09-01 | B45: 35455.06483 | C45: 5.09 | D45: 319.6114333 | E45: 150.3885667 | F45: 470 | G45: =IF(E45>=0,SUM($E$13:E45),"Ende") -> 5645.453398
A46: 2014-10-01 | B46: 35135.4534 | C46: 5.09 | D46: 320.9671185 | E46: 149.0328815 | F46: 470 | G46: =IF(E46>=0,SUM($E$13:E46),"Ende") -> 5794.486279
A47: 2014-11-01 | B47: 34814.48628 | C47: 5.09 | D47: 322.328554 | E47: 147.671446 | F47: 470 | G47: =IF(E47>=0,SUM($E$13:E47),"Ende") -> 5942.157725
A48: 2014-12-01 | B48: 34492.15773 | C48: 5.09 | D48: 323.6957643 | E48: 146.3042357 | F48: 470 | G48: =IF(E48>=0,SUM($E$13:E48),"Ende") -> 6088.461961
A49: 2015-01-01 | B49: 34168.46196 | C49: 5.09 | D49: 325.0687738 | E49: 144.9312262 | F49: 470 | G49: =IF(E49>=0,SUM($E$13:E49),"Ende") -> 6233.393187
A50: 2015-02-01 | B50: 33843.39319 | C50: 5.09 | D50: 326.4476072 | E50: 143.5523928 | F50: 470 | G50: =IF(E50>=0,SUM($E$13:E50),"Ende") -> 6376.94558
A51: 2015-03-01 | B51: 33516.94558 | C51: 5.09 | D51: 327.8322892 | E51: 142.1677108 | F51: 470 | G51: =IF(E51>=0,SUM($E$13:E51),"Ende") -> 6519.113291
A52: 2015-04-01 | B52: 33189.11329 | C52: 5.09 | D52: 329.2228445 | E52: 140.7771555 | F52: 470 | G52: =IF(E52>=0,SUM($E$13:E52),"Ende") -> 6659.890446
A53: 2015-05-01 | B53: 32859.89045 | C53: 5.09 | D53: 330.619298 | E53: 139.380702 | F53: 470 | G53: =IF(E53>=0,SUM($E$13:E53),"Ende") -> 6799.271148
A54: 2015-06-01 | B54: 32529.27115 | C54: 5.09 | D54: 332.0216749 | E54: 137.9783251 | F54: 470 | G54: =IF(E54>=0,SUM($E$13:E54),"Ende") -> 6937.249473
A55: 2015-07-01 | B55: 32197.24947 | C55: 5.09 | D55: 333.4300002 | E55: 136.5699998 | F55: 470 | G55: =IF(E55>=0,SUM($E$13:E55),"Ende") -> 7073.819473
A56: 2015-08-01 | B56: 31863.81947 | C56: 5.09 | D56: 334.8442991 | E56: 135.1557009 | F56: 470 | G56: =IF(E56>=0,SUM($E$13:E56),"Ende") -> 7208.975174
A57: 2015-09-01 | B57: 31528.97517 | C57: 5.09 | D57: 336.264597 | E57: 133.735403 | F57: 470 | G57: =IF(E57>=0,SUM($E$13:E57),"Ende") -> 7342.710577
A58: 2015-10-01 | B58: 31192.71058 | C58: 5.09 | D58: 337.6909193 | E58: 132.3090807 | F58: 470 | G58: =IF(E58>=0,SUM($E$13:E58),"Ende") -> 7475.019658
A59: 2015-11-01 | B59: 30855.01966 | C59: 5.09 | D59: 339.1232916 | E59: 130.8767084 | F59: 470 | G59: =IF(E59>=0,SUM($E$13:E59),"Ende") -> 7605.896366
A60: 2015-12-01 | B60: 30515.89637 | C60: 5.09 | D60: 340.5617396 | E60: 129.4382604 | F60: 470 | G60: =IF(E60>=0,SUM($E$13:E60),"Ende") -> 7735.334627
A61: 2016-01-01 | B61: 30175.33463 | C61: 5.09 | D61: 342.006289 | E61: 127.993711 | F61: 470 | G61: =IF(E61>=0,SUM($E$13:E61),"Ende") -> 7863.328338
A62: 2016-02-01 | B62: 29833.32834 | C62: 5.09 | D62: 343.4569656 | E62: 126.5430344 | F62: 470 | G62: =IF(E62>=0,SUM($E$13:E62),"Ende") -> 7989.871372
A63: 2016-03-01 | B63: 29489.87137 | C63: 5.09 | D63: 344.9137956 | E63: 125.0862044 | F63: 470 | G63: =IF(E63>=0,SUM($E$13:E63),"Ende") -> 8114.957576
A64: 2016-04-01 | B64: 29144.95758 | C64: 5.09 | D64: 346.3768049 | E64: 123.6231951 | F64: 470 | G64: =IF(E64>=0,SUM($E$13:E64),"Ende") -> 8238.580772
A65: 2016-05-01 | B65: 28798.58077 | C65: 5.09 | D65: 347.8460199 | E65: 122.1539801 | F65: 470 | G65: =IF(E65>=0,SUM($E$13:E65),"Ende") -> 8360.734752
A66: 2016-06-01 | B66: 28450.73475 | C66: 5.09 | D66: 349.3214668 | E66: 120.6785332 | F66: 470 | G66: =IF(E66>=0,SUM($E$13:E66),"Ende") -> 8481.413285
A67: 2016-07-01 | B67: 28101.41328 | C67: 5.09 | D67: 350.803172 | E67: 119.196828 | F67: 470 | G67: =IF(E67>=0,SUM($E$13:E67),"Ende") -> 8600.610113
A68: 2016-08-01 | B68: 27750.61011 | C68: 5.09 | D68: 352.2911621 | E68: 117.7088379 | F68: 470 | G68: =IF(E68>=0,SUM($E$13:E68),"Ende") -> 8718.318951
A69: 2016-09-01 | B69: 27398.31895 | C69: 5.09 | D69: 353.7854638 | E69: 116.2145362 | F69: 470 | G69: =IF(E69>=0,SUM($E$13:E69),"Ende") -> 8834.533487
A70: 2016-10-01 | B70: 27044.53349 | C70: 5.09 | D70: 355.2861038 | E70: 114.7138962 | F70: 470 | G70: =IF(E70>=0,SUM($E$13:E70),"Ende") -> 8949.247383
A71: 2016-11-01 | B71: 26689.24738 | C71: 5.09 | D71: 356.793109 | E71: 113.206891 | F71: 470 | G71: =IF(E71>=0,SUM($E$13:E71),"Ende") -> 9062.454274
A72: 2016-12-01 | B72: 26332.45427 | C72: 5.09 | D72: 358.3065065 | E72: 111.6934935 | F72: 470 | G72: =IF(E72>=0,SUM($E$13:E72),"Ende") -> 9174.147768
A73: 2017-01-01 | B73: 25974.14777 | C73: 5.09 | D73: 359.8263232 | E73: 110.1736768 | F73: 470 | G73: =IF(E73>=0,SUM($E$13:E73),"Ende") -> 9284.321444
A74: 2017-02-01 | B74: 25614.32144 | C74: 5.09 | D74: 361.3525865 | E74: 108.6474135 | F74: 470 | G74: =IF(E74>=0,SUM($E$13:E74),"Ende") -> 9392.968858
A75: 2017-03-01 | B75: 25252.96886 | C75: 5.09 | D75: 362.8853238 | E75: 107.1146762 | F75: 470 | G75: =IF(E75>=0,SUM($E$13:E75),"Ende") -> 9500.083534
A76: 2017-04-01 | B76: 24890.08353 | C76: 5.09 | D76: 364.4245623 | E76: 105.5754377 | F76: 470 | G76: =IF(E76>=0,SUM($E$13:E76),"Ende") -> 9605.658972
A77: 2017-05-01 | B77: 24525.65897 | C77: 5.09 | D77: 365.9703299 | E77: 104.0296701 | F77: 470 | G77: =IF(E77>=0,SUM($E$13:E77),"Ende") -> 9709.688642
A78: 2017-06-01 | B78: 24159.68864 | C78: 5.09 | D78: 367.522654 | E78: 102.477346 | F78: 470 | G78: =IF(E78>=0,SUM($E$13:E78),"Ende") -> 9812.165988
A79: =DATE(YEAR(A78),MONTH(A78)+1,DAY(A78)) -> 2017-07-01 | B79: =B78-D78 -> 23792.16599 | C79: =C78 -> 5.09 | D79: =F79-E79 -> 369.0815626 | E79: =B79*C79/100/12 -> 100.9184374 | F79: =F78 -> 470 | G79: =IF(E79>=0,SUM($E$13:E79),"Ende") -> 9913.084425
A80: 2017-08-01 | B80: 23423.08443 | C80: 5.09 | D80: 370.6470836 | E80: 99.35291644 | F80: 470 | G80: =IF(E80>=0,SUM($E$13:E80),"Ende") -> 10012.43734
A81: 2017-09-01 | B81: 23052.43734 | C81: 5.09 | D81: 372.2192449 | E81: 97.78075506 | F81: 470 | G81: =IF(E81>=0,SUM($E$13:E81),"Ende") -> 10110.2181
A82: 2017-10-01 | B82: 22680.2181 | C82: 5.09 | D82: 373.7980749 | E82: 96.20192509 | F82: 470 | G82: =IF(E82>=0,SUM($E$13:E82),"Ende") -> 10206.42002
A83: 2017-11-01 | B83: 22306.42002 | C83: 5.09 | D83: 375.3836017 | E83: 94.61639826 | F83: 470 | G83: =IF(E83>=0,SUM($E$13:E83),"Ende") -> 10301.03642
A84: 2017-12-01 | B84: 21931.03642 | C84: 5.09 | D84: 376.9758539 | E84: 93.02414615 | F84: 470 | G84: =IF(E84>=0,SUM($E$13:E84),"Ende") -> 10394.06057
A85: 2018-01-01 | B85: 21554.06057 | C85: 5.09 | D85: 378.5748598 | E85: 91.42514024 | F85: 470 | G85: =IF(E85>=0,SUM($E$13:E85),"Ende") -> 10485.48571
A86: 2018-02-01 | B86: 21175.48571 | C86: 5.09 | D86: 380.1806481 | E86: 89.81935187 | F86: 470 | G86: =IF(E86>=0,SUM($E$13:E86),"Ende") -> 10575.30506
A87: 2018-03-01 | B87: 20795.30506 | C87: 5.09 | D87: 381.7932477 | E87: 88.20675229 | F87: 470 | G87: =IF(E87>=0,SUM($E$13:E87),"Ende") -> 10663.51181
A88: 2018-04-01 | B88: 20413.51181 | C88: 5.09 | D88: 383.4126874 | E88: 86.5873126 | F88: 470 | G88: =IF(E88>=0,SUM($E$13:E88),"Ende") -> 10750.09912
A89: 2018-05-01 | B89: 20030.09912 | C89: 5.09 | D89: 385.0389962 | E89: 84.96100378 | F89: 470 | G89: =IF(E89>=0,SUM($E$13:E89),"Ende") -> 10835.06013
A90: 2018-06-01 | B90: 19645.06013 | C90: 5.09 | D90: 386.6722033 | E90: 83.32779671 | F90: 470 | G90: =IF(E90>=0,SUM($E$13:E90),"Ende") -> 10918.38792
A91: 2018-07-01 | B91: 19258.38792 | C91: 5.09 | D91: 388.3123379 | E91: 81.68766211 | F91: 470 | G91: =IF(E91>=0,SUM($E$13:E91),"Ende") -> 11000.07559
A92: 2018-08-01 | B92: 18870.07559 | C92: 5.09 | D92: 389.9594294 | E92: 80.04057061 | F92: 470 | G92: =IF(E92>=0,SUM($E$13:E92),"Ende") -> 11080.11616
A93: 2018-09-01 | B93: 18480.11616 | C93: 5.09 | D93: 391.6135073 | E93: 78.3864927 | F93: 470 | G93: =IF(E93>=0,SUM($E$13:E93),"Ende") -> 11158.50265
A94: 2018-10-01 | B94: 18088.50265 | C94: 5.09 | D94: 393.2746013 | E94: 76.72539874 | F94: 470 | G94: =IF(E94>=0,SUM($E$13:E94),"Ende") -> 11235.22805
A95: 2018-11-01 | B95: 17695.22805 | C95: 5.09 | D95: 394.942741 | E95: 75.05725897 | F95: 470 | G95: =IF(E95>=0,SUM($E$13:E95),"Ende") -> 11310.28531
A96: 2018-12-01 | B96: 17300.28531 | C96: 5.09 | D96: 396.6179565 | E96: 73.38204351 | F96: 470 | G96: =IF(E96>=0,SUM($E$13:E96),"Ende") -> 11383.66735
A97: 2019-01-01 | B97: 16903.66735 | C97: 5.09 | D97: 398.3002777 | E97: 71.69972235 | F97: 470 | G97: =IF(E97>=0,SUM($E$13:E97),"Ende") -> 11455.36707
A98: 2019-02-01 | B98: 16505.36707 | C98: 5.09 | D98: 399.9897347 | E98: 70.01026533 | F98: 470 | G98: =IF(E98>=0,SUM($E$13:E98),"Ende") -> 11525.37734
A99: 2019-03-01 | B99: 16105.37734 | C99: 5.09 | D99: 401.6863578 | E99: 68.31364221 | F99: 470 | G99: =IF(E99>=0,SUM($E$13:E99),"Ende") -> 11593.69098
A100: 2019-04-01 | B100: 15703.69098 | C100: 5.09 | D100: 403.3901774 | E100: 66.60982258 | F100: 470 | G100: =IF(E100>=0,SUM($E$13:E100),"Ende") -> 11660.3008
A101: 2019-05-01 | B101: 15300.3008 | C101: 5.09 | D101: 405.1012241 | E101: 64.89877591 | F101: 470 | G101: =IF(E101>=0,SUM($E$13:E101),"Ende") -> 11725.19958
A102: 2019-06-01 | B102: 14895.19958 | C102: 5.09 | D102: 406.8195285 | E102: 63.18047155 | F102: 470 | G102: =IF(E102>=0,SUM($E$13:E102),"Ende") -> 11788.38005
A103: 2019-07-01 | B103: 14488.38005 | C103: 5.09 | D103: 408.5451213 | E103: 61.45487871 | F103: 470 | G103: =IF(E103>=0,SUM($E$13:E103),"Ende") -> 11849.83493
A104: 2019-08-01 | B104: 14079.83493 | C104: 5.09 | D104: 410.2780335 | E104: 59.72196649 | F104: 470 | G104: =IF(E104>=0,SUM($E$13:E104),"Ende") -> 11909.5569
A105: 2019-09-01 | B105: 13669.5569 | C105: 5.09 | D105: 412.0182962 | E105: 57.98170383 | F105: 470 | G105: =IF(E105>=0,SUM($E$13:E105),"Ende") -> 11967.5386
A106: 2019-10-01 | B106: 13257.5386 | C106: 5.09 | D106: 413.7659404 | E106: 56.23405956 | F106: 470 | G106: =IF(E106>=0,SUM($E$13:E106),"Ende") -> 12023.77266
A107: 2019-11-01 | B107: 12843.77266 | C107: 5.09 | D107: 415.5209976 | E107: 54.47900236 | F107: 470 | G107: =IF(E107>=0,SUM($E$13:E107),"Ende") -> 12078.25166
A108: 2019-12-01 | B108: 12428.25166 | C108: 5.09 | D108: 417.2834992 | E108: 52.7165008 | F108: 470 | G108: =IF(E108>=0,SUM($E$13:E108),"Ende") -> 12130.96816
A109: 2020-01-01 | B109: 12010.96816 | C109: 5.09 | D109: 419.0534767 | E109: 50.94652329 | F109: 470 | G109: =IF(E109>=0,SUM($E$13:E109),"Ende") -> 12181.91469
A110: 2020-02-01 | B110: 11591.91469 | C110: 5.09 | D110: 420.8309619 | E110: 49.16903812 | F110: 470 | G110: =IF(E110>=0,SUM($E$13:E110),"Ende") -> 12231.08372
A111: 2020-03-01 | B111: 11171.08372 | C111: 5.09 | D111: 422.6159865 | E111: 47.38401346 | F111: 470 | G111: =IF(E111>=0,SUM($E$13:E111),"Ende") -> 12278.46774
A112: 2020-04-01 | B112: 10748.46774 | C112: 5.09 | D112: 424.4085827 | E112: 45.59141732 | F112: 470 | G112: =IF(E112>=0,SUM($E$13:E112),"Ende") -> 12324.05915
A113: 2020-05-01 | B113: 10324.05915 | C113: 5.09 | D113: 426.2087824 | E113: 43.79121758 | F113: 470 | G113: =IF(E113>=0,SUM($E$13:E113),"Ende") -> 12367.85037
A114: 2020-06-01 | B114: 9897.850372 | C114: 5.09 | D114: 428.016618 | E114: 41.98338199 | F114: 470 | G114: =IF(E114>=0,SUM($E$13:E114),"Ende") -> 12409.83375
A115: 2020-07-01 | B115: 9469.833754 | C115: 5.09 | D115: 429.8321218 | E115: 40.16787817 | F115: 470 | G115: =IF(E115>=0,SUM($E$13:E115),"Ende") -> 12450.00163
A116: 2020-08-01 | B116: 9040.001632 | C116: 5.09 | D116: 431.6553264 | E116: 38.34467359 | F116: 470 | G116: =IF(E116>=0,SUM($E$13:E116),"Ende") -> 12488.34631
A117: 2020-09-01 | B117: 8608.346306 | C117: 5.09 | D117: 433.4862644 | E117: 36.51373558 | F117: 470 | G117: =IF(E117>=0,SUM($E$13:E117),"Ende") -> 12524.86004
A118: 2020-10-01 | B118: 8174.860041 | C118: 5.09 | D118: 435.3249687 | E118: 34.67503134 | F118: 470 | G118: =IF(E118>=0,SUM($E$13:E118),"Ende") -> 12559.53507
A119: 2020-11-01 | B119: 7739.535073 | C119: 5.09 | D119: 437.1714721 | E119: 32.82852793 | F119: 470 | G119: =IF(E119>=0,SUM($E$13:E119),"Ende") -> 12592.3636
A120: 2020-12-01 | B120: 7302.363601 | C120: 5.09 | D120: 439.0258077 | E120: 30.97419227 | F120: 470 | G120: =IF(E120>=0,SUM($E$13:E120),"Ende") -> 12623.33779
A121: 2021-01-01 | B121: 6863.337793 | C121: 5.09 | D121: 440.8880089 | E121: 29.11199114 | F121: 470 | G121: =IF(E121>=0,SUM($E$13:E121),"Ende") -> 12652.44978
A122: 2021-02-01 | B122: 6422.449784 | C122: 5.09 | D122: 442.7581088 | E122: 27.24189117 | F122: 470 | G122: =IF(E122>=0,SUM($E$13:E122),"Ende") -> 12679.69168
A123: 2021-03-01 | B123: 5979.691675 | C123: 5.09 | D123: 444.6361411 | E123: 25.36385886 | F123: 470 | G123: =IF(E123>=0,SUM($E$13:E123),"Ende") -> 12705.05553
A124: 2021-04-01 | B124: 5535.055534 | C124: 5.09 | D124: 446.5221394 | E124: 23.47786056 | F124: 470 | G124: =IF(E124>=0,SUM($E$13:E124),"Ende") -> 12728.53339
A125: 2021-05-01 | B125: 5088.533395 | C125: 5.09 | D125: 448.4161375 | E125: 21.58386248 | F125: 470 | G125: =IF(E125>=0,SUM($E$13:E125),"Ende") -> 12750.11726
A126: 2021-06-01 | B126: 4640.117257 | C126: 5.09 | D126: 450.3181693 | E126: 19.6818307 | F126: 470 | G126: =IF(E126>=0,SUM($E$13:E126),"Ende") -> 12769.79909
A127: 2021-07-01 | B127: 4189.799088 | C127: 5.09 | D127: 452.2282689 | E127: 17.77173113 | F127: 470 | G127: =IF(E127>=0,SUM($E$13:E127),"Ende") -> 12787.57082
A128: 2021-08-01 | B128: 3737.570819 | C128: 5.09 | D128: 454.1464704 | E128: 15.85352956 | F128: 470 | G128: =IF(E128>=0,SUM($E$13:E128),"Ende") -> 12803.42435
A129: 2021-09-01 | B129: 3283.424348 | C129: 5.09 | D129: 456.0728084 | E129: 13.92719161 | F129: 470 | G129: =IF(E129>=0,SUM($E$13:E129),"Ende") -> 12817.35154
A130: 2021-10-01 | B130: 2827.35154 | C130: 5.09 | D130: 458.0073172 | E130: 11.99268278 | F130: 470 | G130: =IF(E130>=0,SUM($E$13:E130),"Ende") -> 12829.34422
A131: 2021-11-01 | B131: 2369.344223 | C131: 5.09 | D131: 459.9500316 | E131: 10.04996841 | F131: 470 | G131: =IF(E131>=0,SUM($E$13:E131),"Ende") -> 12839.39419
A132: 2021-12-01 | B132: 1909.394191 | C132: 5.09 | D132: 461.9009863 | E132: 8.099013694 | F132: 470 | G132: =IF(E132>=0,SUM($E$13:E132),"Ende") -> 12847.4932
A133: 2022-01-01 | B133: 1447.493205 | C133: 5.09 | D133: 463.8602163 | E133: 6.139783678 | F133: 470 | G133: =IF(E133>=0,SUM($E$13:E133),"Ende") -> 12853.63299
A134: 2022-02-01 | B134: 983.6329886 | C134: 5.09 | D134: 465.8277567 | E134: 4.17224326 | F134: 470 | G134: =IF(E134>=0,SUM($E$13:E134),"Ende") -> 12857.80523
A135: 2022-03-01 | B135: 517.8052319 | C135: 5.09 | D135: 467.8036428 | E135: 2.196357192 | F135: 470 | G135: =IF(E135>=0,SUM($E$13:E135),"Ende") -> 12860.00159
A136: 2022-04-01 | B136: 50.00158904 | C136: 5.09 | D136: 469.7879099 | E136: 0.2120900735 | F136: 470 | G136: =IF(E136>=0,SUM($E$13:E136),"Ende") -> 12860.21368
A137: 2022-05-01 | B137: -419.7863209 | C137: 5.09 | D137: 471.7805936 | E137: -1.780593644 | F137: 470 | G137: =IF(E137>=0,SUM($E$13:E137),"Ende") -> Ende
A138: 2022-06-01 | B138: -891.5669145 | C138: 5.09 | D138: 473.7817297 | E138: -3.781729662 | F138: 470 | G138: =IF(E138>=0,SUM($E$13:E138),"Ende") -> Ende
A139: 2022-07-01 | B139: -1365.348644 | C139: 5.09 | D139: 475.7913538 | E139: -5.791353832 | F139: 470 | G139: =IF(E139>=0,SUM($E$13:E139),"Ende") -> Ende
A140: 2022-08-01 | B140: -1841.139998 | C140: 5.09 | D140: 477.8095022 | E140: -7.809502158 | F140: 470 | G140: =IF(E140>=0,SUM($E$13:E140),"Ende") -> Ende
A141: 2022-09-01 | B141: -2318.9495 | C141: 5.09 | D141: 479.8362108 | E141: -9.836210797 | F141: 470 | G141: =IF(E141>=0,SUM($E$13:E141),"Ende") -> Ende
A142: 2022-10-01 | B142: -2798.785711 | C142: 5.09 | D142: 481.8715161 | E142: -11.87151606 | F142: 470 | G142: =IF(E142>=0,SUM($E$13:E142),"Ende") -> Ende
A143: =DATE(YEAR(A142),MONTH(A142)+1,DAY(A142)) -> 2022-11-01 | B143: =B142-D142 -> -3280.657227 | C143: =C142 -> 5.09 | D143: =F143-E143 -> 483.9154544 | E143: =B143*C143/100/12 -> -13.9154544 | F143: =F142 -> 470 | G143: =IF(E143>=0,SUM($E$13:E143),"Ende") -> Ende
A144: 2022-12-01 | B144: -3764.572681 | C144: 5.09 | D144: 485.9680625 | E144: -15.96806246 | F144: 470 | G144: =IF(E144>=0,SUM($E$13:E144),"Ende") -> Ende
A145: 2023-01-01 | B145: -4250.540744 | C145: 5.09 | D145: 488.029377 | E145: -18.02937699 | F145: 470 | G145: =IF(E145>=0,SUM($E$13:E145),"Ende") -> Ende
A146: 2023-02-01 | B146: -4738.570121 | C146: 5.09 | D146: 490.0994349 | E146: -20.09943493 | F146: 470 | G146: =IF(E146>=0,SUM($E$13:E146),"Ende") -> Ende
A147: 2023-03-01 | B147: -5228.669556 | C147: 5.09 | D147: 492.1782734 | E147: -22.17827337 | F147: 470 | G147: =IF(E147>=0,SUM($E$13:E147),"Ende") -> Ende
A148: 2023-04-01 | B148: -5720.847829 | C148: 5.09 | D148: 494.2659295 | E148: -24.26592954 | F148: 470 | G148: =IF(E148>=0,SUM($E$13:E148),"Ende") -> Ende
A149: 2023-05-01 | B149: -6215.113759 | C149: 5.09 | D149: 496.3624409 | E149: -26.36244086 | F149: 470 | G149: =IF(E149>=0,SUM($E$13:E149),"Ende") -> Ende
A150: 2023-06-01 | B150: -6711.4762 | C150: 5.09 | D150: 498.4678449 | E150: -28.46784488 | F150: 470 | G150: =IF(E150>=0,SUM($E$13:E150),"Ende") -> Ende
A151: 2023-07-01 | B151: -7209.944044 | C151: 5.09 | D151: 500.5821793 | E151: -30.58217932 | F151: 470 | G151: =IF(E151>=0,SUM($E$13:E151),"Ende") -> Ende
A152: 2023-08-01 | B152: -7710.526224 | C152: 5.09 | D152: 502.7054821 | E152: -32.70548207 | F152: 470 | G152: =IF(E152>=0,SUM($E$13:E152),"Ende") -> Ende
A153: 2023-09-01 | B153: -8213.231706 | C153: 5.09 | D153: 504.8377912 | E153: -34.83779115 | F153: 470 | G153: =IF(E153>=0,SUM($E$13:E153),"Ende") -> Ende
A154: 2023-10-01 | B154: -8718.069497 | C154: 5.09 | D154: 506.9791448 | E154: -36.97914478 | F154: 470 | G154: =IF(E154>=0,SUM($E$13:E154),"Ende") -> Ende
A155: 2023-11-01 | B155: -9225.048642 | C155: 5.09 | D155: 509.1295813 | E155: -39.12958132 | F155: 470 | G155: =IF(E155>=0,SUM($E$13:E155),"Ende") -> Ende
A156: 2023-12-01 | B156: -9734.178223 | C156: 5.09 | D156: 511.2891393 | E156: -41.2891393 | F156: 470 | G156: =IF(E156>=0,SUM($E$13:E156),"Ende") -> Ende
A157: 2024-01-01 | B157: -10245.46736 | C157: 5.09 | D157: 513.4578574 | E157: -43.4578574 | F157: 470 | G157: =IF(E157>=0,SUM($E$13:E157),"Ende") -> Ende
A158: 2024-02-01 | B158: -10758.92522 | C158: 5.09 | D158: 515.6357745 | E158: -45.63577447 | F158: 470 | G158: =IF(E158>=0,SUM($E$13:E158),"Ende") -> Ende
A159: 2024-03-01 | B159: -11274.56099 | C159: 5.09 | D159: 517.8229296 | E159: -47.82292955 | F159: 470 | G159: =IF(E159>=0,SUM($E$13:E159),"Ende") -> Ende
A160: 2024-04-01 | B160: -11792.38392 | C160: 5.09 | D160: 520.0193618 | E160: -50.01936181 | F160: 470 | G160: =IF(E160>=0,SUM($E$13:E160),"Ende") -> Ende
A161: 2024-05-01 | B161: -12312.40329 | C161: 5.09 | D161: 522.2251106 | E161: -52.2251106 | F161: 470 | G161: =IF(E161>=0,SUM($E$13:E161),"Ende") -> Ende
A162: 2024-06-01 | B162: -12834.6284 | C162: 5.09 | D162: 524.4402154 | E162: -54.44021545 | F162: 470 | G162: =IF(E162>=0,SUM($E$13:E162),"Ende") -> Ende
A163: 2024-07-01 | B163: -13359.06861 | C163: 5.09 | D163: 526.664716 | E163: -56.66471603 | F163: 470 | G163: =IF(E163>=0,SUM($E$13:E163),"Ende") -> Ende
A164: 2024-08-01 | B164: -13885.73333 | C164: 5.09 | D164: 528.8986522 | E164: -58.8986522 | F164: 470 | G164: =IF(E164>=0,SUM($E$13:E164),"Ende") -> Ende
A165: 2024-09-01 | B165: -14414.63198 | C165: 5.09 | D165: 531.142064 | E165: -61.14206398 | F165: 470 | G165: =IF(E165>=0,SUM($E$13:E165),"Ende") -> Ende
A166: 2024-10-01 | B166: -14945.77404 | C166: 5.09 | D166: 533.3949916 | E166: -63.39499157 | F166: 470 | G166: =IF(E166>=0,SUM($E$13:E166),"Ende") -> Ende
A167: 2024-11-01 | B167: -15479.16904 | C167: 5.09 | D167: 535.6574753 | E167: -65.65747533 | F167: 470 | G167: =IF(E167>=0,SUM($E$13:E167),"Ende") -> Ende
A168: 2024-12-01 | B168: -16014.82651 | C168: 5.09 | D168: 537.9295558 | E168: -67.92955578 | F168: 470 | G168: =IF(E168>=0,SUM($E$13:E168),"Ende") -> Ende
A169: 2025-01-01 | B169: -16552.75607 | C169: 5.09 | D169: 540.2112736 | E169: -70.21127365 | F169: 470 | G169: =IF(E169>=0,SUM($E$13:E169),"Ende") -> Ende
A170: 2025-02-01 | B170: -17092.96734 | C170: 5.09 | D170: 542.5026698 | E170: -72.5026698 | F170: 470 | G170: =IF(E170>=0,SUM($E$13:E170),"Ende") -> Ende
A171: 2025-03-01 | B171: -17635.47001 | C171: 5.09 | D171: 544.8037853 | E171: -74.80378529 | F171: 470 | G171: =IF(E171>=0,SUM($E$13:E171),"Ende") -> Ende
A172: 2025-04-01 | B172: -18180.2738 | C172: 5.09 | D172: 547.1146613 | E172: -77.11466135 | F172: 470 | G172: =IF(E172>=0,SUM($E$13:E172),"Ende") -> Ende
A173: 2025-05-01 | B173: -18727.38846 | C173: 5.09 | D173: 549.4353394 | E173: -79.43533937 | F173: 470 | G173: =IF(E173>=0,SUM($E$13:E173),"Ende") -> Ende
A174: 2025-06-01 | B174: -19276.8238 | C174: 5.09 | D174: 551.7658609 | E174: -81.76586093 | F174: 470 | G174: =IF(E174>=0,SUM($E$13:E174),"Ende") -> Ende
A175: 2025-07-01 | B175: -19828.58966 | C175: 5.09 | D175: 554.1062678 | E175: -84.10626779 | F175: 470 | G175: =IF(E175>=0,SUM($E$13:E175),"Ende") -> Ende
A176: 2025-08-01 | B176: -20382.69592 | C176: 5.09 | D176: 556.4566019 | E176: -86.45660188 | F176: 470 | G176: =IF(E176>=0,SUM($E$13:E176),"Ende") -> Ende
A177: 2025-09-01 | B177: -20939.15253 | C177: 5.09 | D177: 558.8169053 | E177: -88.8169053 | F177: 470 | G177: =IF(E177>=0,SUM($E$13:E177),"Ende") -> Ende
A178: 2025-10-01 | B178: -21497.96943 | C178: 5.09 | D178: 561.1872203 | E178: -91.18722034 | F178: 470 | G178: =IF(E178>=0,SUM($E$13:E178),"Ende") -> Ende
A179: 2025-11-01 | B179: -22059.15665 | C179: 5.09 | D179: 563.5675895 | E179: -93.56758947 | F179: 470 | G179: =IF(E179>=0,SUM($E$13:E179),"Ende") -> Ende
A180: 2025-12-01 | B180: -22622.72424 | C180: 5.09 | D180: 565.9580553 | E180: -95.95805533 | F180: 470 | G180: =IF(E180>=0,SUM($E$13:E180),"Ende") -> Ende
A181: 2026-01-01 | B181: -23188.6823 | C181: 5.09 | D181: 568.3586607 | E181: -98.35866074 | F181: 470 | G181: =IF(E181>=0,SUM($E$13:E181),"Ende") -> Ende
A182: 2026-02-01 | B182: -23757.04096 | C182: 5.09 | D182: 570.7694487 | E182: -100.7694487 | F182: 470 | G182: =IF(E182>=0,SUM($E$13:E182),"Ende") -> Ende
A183: 2026-03-01 | B183: -24327.81041 | C183: 5.09 | D183: 573.1904625 | E183: -103.1904625 | F183: 470 | G183: =IF(E183>=0,SUM($E$13:E183),"Ende") -> Ende
A184: 2026-04-01 | B184: -24901.00087 | C184: 5.09 | D184: 575.6217454 | E184: -105.6217454 | F184: 470 | G184: =IF(E184>=0,SUM($E$13:E184),"Ende") -> Ende
A185: 2026-05-01 | B185: -25476.62261 | C185: 5.09 | D185: 578.0633409 | E185: -108.0633409 | F185: 470 | G185: =IF(E185>=0,SUM($E$13:E185),"Ende") -> Ende
A186: 2026-06-01 | B186: -26054.68596 | C186: 5.09 | D186: 580.5152929 | E186: -110.5152929 | F186: 470 | G186: =IF(E186>=0,SUM($E$13:E186),"Ende") -> Ende
A187: 2026-07-01 | B187: -26635.20125 | C187: 5.09 | D187: 582.9776453 | E187: -112.9776453 | F187: 470 | G187: =IF(E187>=0,SUM($E$13:E187),"Ende") -> Ende
A188: 2026-08-01 | B188: -27218.17889 | C188: 5.09 | D188: 585.4504421 | E188: -115.4504421 | F188: 470 | G188: =IF(E188>=0,SUM($E$13:E188),"Ende") -> Ende
A189: 2026-09-01 | B189: -27803.62934 | C189: 5.09 | D189: 587.9337278 | E189: -117.9337278 | F189: 470 | G189: =IF(E189>=0,SUM($E$13:E189),"Ende") -> Ende
A190: 2026-10-01 | B190: -28391.56306 | C190: 5.09 | D190: 590.4275467 | E190: -120.4275467 | F190: 470 | G190: =IF(E190>=0,SUM($E$13:E190),"Ende") -> Ende
A191: 2026-11-01 | B191: -28981.99061 | C191: 5.09 | D191: 592.9319435 | E191: -122.9319435 | F191: 470 | G191: =IF(E191>=0,SUM($E$13:E191),"Ende") -> Ende
A192: 2026-12-01 | B192: -29574.92255 | C192: 5.09 | D192: 595.4469632 | E192: -125.4469632 | F192: 470 | G192: =IF(E192>=0,SUM($E$13:E192),"Ende") -> Ende
A193: 2027-01-01 | B193: -30170.36952 | C193: 5.09 | D193: 597.9726507 | E193: -127.9726507 | F193: 470 | G193: =IF(E193>=0,SUM($E$13:E193),"Ende") -> Ende
A194: 2027-02-01 | B194: -30768.34217 | C194: 5.09 | D194: 600.5090514 | E194: -130.5090514 | F194: 470 | G194: =IF(E194>=0,SUM($E$13:E194),"Ende") -> Ende
A195: 2027-03-01 | B195: -31368.85122 | C195: 5.09 | D195: 603.0562106 | E195: -133.0562106 | F195: 470 | G195: =IF(E195>=0,SUM($E$13:E195),"Ende") -> Ende
A196: 2027-04-01 | B196: -31971.90743 | C196: 5.09 | D196: 605.614174 | E196: -135.614174 | F196: 470 | G196: =IF(E196>=0,SUM($E$13:E196),"Ende") -> Ende
A197: 2027-05-01 | B197: -32577.5216 | C197: 5.09 | D197: 608.1829875 | E197: -138.1829875 | F197: 470 | G197: =IF(E197>=0,SUM($E$13:E197),"Ende") -> Ende
A198: 2027-06-01 | B198: -33185.70459 | C198: 5.09 | D198: 610.762697 | E198: -140.762697 | F198: 470 | G198: =IF(E198>=0,SUM($E$13:E198),"Ende") -> Ende
A199: 2027-07-01 | B199: -33796.46729 | C199: 5.09 | D199: 613.3533487 | E199: -143.3533487 | F199: 470 | G199: =IF(E199>=0,SUM($E$13:E199),"Ende") -> Ende
A200: 2027-08-01 | B200: -34409.82064 | C200: 5.09 | D200: 615.9549892 | E200: -145.9549892 | F200: 470 | G200: =IF(E200>=0,SUM($E$13:E200),"Ende") -> Ende
A201: 2027-09-01 | B201: -35025.77563 | C201: 5.09 | D201: 618.5676649 | E201: -148.5676649 | F201: 470 | G201: =IF(E201>=0,SUM($E$13:E201),"Ende") -> Ende
A202: 2027-10-01 | B202: -35644.34329 | C202: 5.09 | D202: 621.1914228 | E202: -151.1914228 | F202: 470 | G202: =IF(E202>=0,SUM($E$13:E202),"Ende") -> Ende
A203: 2027-11-01 | B203: -36265.53471 | C203: 5.09 | D203: 623.8263097 | E203: -153.8263097 | F203: 470 | G203: =IF(E203>=0,SUM($E$13:E203),"Ende") -> Ende
A204: 2027-12-01 | B204: -36889.36102 | C204: 5.09 | D204: 626.472373 | E204: -156.472373 | F204: 470 | G204: =IF(E204>=0,SUM($E$13:E204),"Ende") -> Ende
... 409 more rows
